[Event "*** Titled Tuesday 3|2 Blitz"]
[Site "Chess.com"]
[Date "2016.09.06"]
[Round "1"]
[White "OparinGrigoriy"]
[Black "spirals5"]
[Result "1-0"]
[WhiteElo "2607"]
[BlackElo "2267"]
[TimeControl "180+2"]
[EndTime "17:09:19 PDT"]
[Termination "OparinGrigoriy won by resignation"]

1. e4 {[%clk 0:03:02]} 1... c5 {[%clk 0:03:00.1]} 2. Nf3 {[%clk 0:03:02.9]} 2...
d6 {[%clk 0:03:00.9]} 3. d4 {[%clk 0:03:04.5]} 3... cxd4 {[%clk 0:03:00.9]} 4.
Nxd4 {[%clk 0:03:06.4]} 4... Nf6 {[%clk 0:03:01.6]} 5. Nc3 {[%clk 0:03:08.3]}
5... a6 {[%clk 0:03:02.2]} 6. h3 {[%clk 0:03:09.8]} 6... e5 {[%clk 0:03:02.7]}
7. Nb3 {[%clk 0:03:09.8]} 7... h5 {[%clk 0:03:03.1]} 8. Be3 {[%clk 0:03:09.3]}
8... Be6 {[%clk 0:03:03.4]} 9. f4 {[%clk 0:03:07.1]} 9... Qc7 {[%clk 0:02:57.1]}
10. Qe2 {[%clk 0:03:03.3]} 10... Nbd7 {[%clk 0:02:56.2]} 11. f5 {[%clk
0:03:02.8]} 11... Bxb3 {[%clk 0:02:56.4]} 12. axb3 {[%clk 0:03:04.7]} 12... Rc8
{[%clk 0:02:55.7]} 13. O-O-O {[%clk 0:03:05.3]} 13... b5 {[%clk 0:02:54.6]} 14.
Kb1 {[%clk 0:03:06.7]} 14... Be7 {[%clk 0:02:54.8]} 15. Rg1 {[%clk 0:03:05.1]}
15... b4 {[%clk 0:02:47.9]} 16. Nd5 {[%clk 0:03:05.1]} 16... Nxd5 {[%clk
0:02:48.3]} 17. Rxd5 {[%clk 0:03:07]} 17... Nf6 {[%clk 0:02:46.7]} 18. Rd1
{[%clk 0:02:59.1]} 18... Nxe4 {[%clk 0:02:46.5]} 19. g3 {[%clk 0:02:55.2]} 19...
Nc5 {[%clk 0:02:23.1]} 20. Bg2 {[%clk 0:02:50.6]} 20... e4 {[%clk 0:02:08.1]}
21. Bxc5 {[%clk 0:02:47.3]} 21... Qxc5 {[%clk 0:02:08.6]} 22. Bxe4 {[%clk
0:02:48.7]} 22... O-O {[%clk 0:02:06.2]} 23. g4 {[%clk 0:02:41.7]} 23... hxg4
{[%clk 0:02:06.4]} 24. hxg4 {[%clk 0:02:42.6]} 24... Bg5 {[%clk 0:02:03.9]} 25.
Rh1 {[%clk 0:02:31.6]} 25... Rfe8 {[%clk 0:01:57]} 26. Qh2 {[%clk 0:02:32.1]}
26... Kf8 {[%clk 0:01:57.1]} 27. Bd3 {[%clk 0:02:22.3]} 27... Qe5 {[%clk
0:01:37.2]} 28. Qh8+ {[%clk 0:01:58.1]} 28... Ke7 {[%clk 0:01:37.1]} 29. Qh5
{[%clk 0:01:59.7]} 29... Qf6 {[%clk 0:01:27.2]} 30. Bc4 {[%clk 0:01:56.8]} 30...
Rh8 {[%clk 0:01:12.6]} 31. Rhe1+ {[%clk 0:01:53.8]} 31... Kd7 {[%clk 0:01:12.7]}
32. Qxf7+ {[%clk 0:01:55.4]} 32... Qxf7 {[%clk 0:01:13.4]} 33. Bxf7 {[%clk
0:01:57.3]} 33... Rcf8 {[%clk 0:01:01.7]} 34. Bc4 {[%clk 0:01:56.1]} 34... a5
{[%clk 0:00:58.3]} 35. Re6 {[%clk 0:01:56.9]} 35... Bf4 {[%clk 0:00:53]} 36.
Bb5+ {[%clk 0:01:57.8]} 36... Kc7 {[%clk 0:00:53.2]} 37. Re7+ {[%clk 0:01:59.2]}
37... Kb6 {[%clk 0:00:52.9]} 38. Bc4 {[%clk 0:01:59.6]} 38... Be5 {[%clk
0:00:50.1]} 39. Be6 {[%clk 0:01:59.7]} 39... Re8 {[%clk 0:00:48]} 40. Rd7 {[%clk
0:01:56.1]} 40... Rd8 {[%clk 0:00:48.7]} 41. Rxd8 {[%clk 0:01:52.6]} 41... Rxd8
{[%clk 0:00:48.7]} 42. Rh1 {[%clk 0:01:53.1]} 42... Kc5 {[%clk 0:00:47.9]} 43.
g5 {[%clk 0:01:53.4]} 43... Re8 {[%clk 0:00:46.1]} 44. Rg1 {[%clk 0:01:41.9]}
44... d5 {[%clk 0:00:34.9]} 45. Rd1 {[%clk 0:01:38.5]} 45... d4 {[%clk
0:00:35.3]} 46. Rh1 {[%clk 0:01:39.3]} 46... Kd6 {[%clk 0:00:35.7]} 47. Bc4
{[%clk 0:01:40.3]} 47... Rf8 {[%clk 0:00:35.7]} 48. Bd3 {[%clk 0:01:41.4]} 48...
Bf4 {[%clk 0:00:29.9]} 49. Rg1 {[%clk 0:01:41.1]} 49... Rh8 {[%clk 0:00:28.4]}
50. Ka2 {[%clk 0:01:39.8]} 50... Be3 {[%clk 0:00:26.4]} 51. Rg4 {[%clk 0:01:40]}
51... Re8 {[%clk 0:00:23]} 52. Rg2 {[%clk 0:01:31.4]} 52... Ke5 {[%clk
0:00:20.1]} 53. Rg4 {[%clk 0:01:22.1]} 53... Rf8 {[%clk 0:00:18.2]} 54. Re4+
{[%clk 0:01:22.1]} 54... Kd6 {[%clk 0:00:16.1]} 55. Re6+ {[%clk 0:01:22.9]}
55... Kd7 {[%clk 0:00:17]} 56. Rg6 {[%clk 0:01:24.5]} 56... Rf7 {[%clk 0:00:15]}
57. Bc4 {[%clk 0:01:26.1]} 57... Re7 {[%clk 0:00:15.6]} 58. f6 {[%clk
0:01:24.6]} 58... gxf6 {[%clk 0:00:16.4]} 59. gxf6 {[%clk 0:01:26.3]} 59... Re5
{[%clk 0:00:15]} 60. f7 {[%clk 0:01:26.1]} 60... Ke7 {[%clk 0:00:15.2]} 61. Rg8
{[%clk 0:01:26]} 61... Bh6 {[%clk 0:00:12]} 62. Re8+ {[%clk 0:01:26.5]} 62...
Kd6 {[%clk 0:00:12.6]} 63. f8=Q+ {[%clk 0:01:27.9]} 63... Bxf8 {[%clk 0:00:13]}
64. Rxf8 {[%clk 0:01:29.8]} 64... Rc5 {[%clk 0:00:10.9]} 65. Bd3 {[%clk
0:01:31.1]} 65... Ke6 {[%clk 0:00:11]} 66. Kb1 {[%clk 0:01:31.2]} 66... Rf5
{[%clk 0:00:10.2]} 67. Rxf5 {[%clk 0:01:32.1]} 1-0

[Event "*** Titled Tuesday 3|2 Blitz"]
[Site "Chess.com"]
[Date "2016.09.06"]
[Round "1"]
[White "theprosecution1"]
[Black "jposthuma"]
[Result "0-1"]
[WhiteElo "2457"]
[BlackElo "2172"]
[TimeControl "180+2"]
[EndTime "17:09:29 PDT"]
[Termination "jposthuma won on time"]

1. e4 {[%clk 0:02:59.1]} 1... c6 {[%clk 0:02:57.3]} 2. d4 {[%clk 0:03:00]} 2...
d5 {[%clk 0:02:59.2]} 3. e5 {[%clk 0:03:01.4]} 3... c5 {[%clk 0:03:00.7]} 4.
dxc5 {[%clk 0:03:02.4]} 4... Nc6 {[%clk 0:03:02.3]} 5. Bb5 {[%clk 0:03:03.9]}
5... e6 {[%clk 0:03:03.4]} 6. Be3 {[%clk 0:03:04.4]} 6... Ne7 {[%clk 0:03:03.5]}
7. c3 {[%clk 0:03:05]} 7... Bd7 {[%clk 0:03:04.9]} 8. Bxc6 {[%clk 0:03:05.9]}
8... Nxc6 {[%clk 0:02:54]} 9. f4 {[%clk 0:03:06.5]} 9... g5 {[%clk 0:02:51.3]}
10. fxg5 {[%clk 0:03:06.4]} 10... Nxe5 {[%clk 0:02:51.9]} 11. Nf3 {[%clk
0:03:07.7]} 11... Nc4 {[%clk 0:02:27.7]} 12. Bd4 {[%clk 0:02:57.8]} 12... e5
{[%clk 0:01:30.8]} 13. Nxe5 {[%clk 0:02:57.4]} 13... Rg8 {[%clk 0:01:17.2]} 14.
O-O {[%clk 0:02:10.2]} 14... Qxg5 {[%clk 0:00:50.5]} 15. Qf3 {[%clk 0:02:01]}
15... Nxe5 {[%clk 0:00:38.5]} 16. Bxe5 {[%clk 0:02:02.9]} 16... Bxc5+ {[%clk
0:00:33.5]} 17. Bd4 {[%clk 0:02:01.7]} 17... Bxd4+ {[%clk 0:00:30.9]} 18. cxd4
{[%clk 0:02:03.6]} 18... Be6 {[%clk 0:00:32.3]} 19. Nc3 {[%clk 0:02:01.3]} 19...
O-O-O {[%clk 0:00:32.5]} 20. Rac1 {[%clk 0:02:01.3]} 20... Kb8 {[%clk
0:00:33.6]} 21. Qf4+ {[%clk 0:01:38.1]} 21... Qxf4 {[%clk 0:00:34.4]} 22. Rxf4
{[%clk 0:01:40]} 22... Rg7 {[%clk 0:00:23]} 23. g3 {[%clk 0:01:37.9]} 23... h5
{[%clk 0:00:20.8]} 24. Re1 {[%clk 0:01:34.9]} 24... Rg4 {[%clk 0:00:21.5]} 25.
Ref1 {[%clk 0:01:13.5]} 25... Kc7 {[%clk 0:00:20.4]} 26. Kg2 {[%clk 0:01:03.7]}
26... a6 {[%clk 0:00:20.1]} 27. h3 {[%clk 0:00:58.4]} 27... Rg6 {[%clk
0:00:21.1]} 28. Rf6 {[%clk 0:00:57.9]} 28... Rdg8 {[%clk 0:00:21.2]} 29. Rxg6
{[%clk 0:00:58.5]} 29... Rxg6 {[%clk 0:00:23.1]} 30. h4 {[%clk 0:00:56.6]} 30...
Kd6 {[%clk 0:00:22.6]} 31. Re1 {[%clk 0:00:52.9]} 31... Rf6 {[%clk 0:00:20.9]}
32. Re5 {[%clk 0:00:52.9]} 32... Rf5 {[%clk 0:00:22.3]} 33. Rxf5 {[%clk
0:00:50.3]} 33... Bxf5 {[%clk 0:00:24.2]} 34. Kf3 {[%clk 0:00:52.2]} 34... f6
{[%clk 0:00:24.1]} 35. Kf4 {[%clk 0:00:53.6]} 35... Bg4 {[%clk 0:00:24.8]} 36.
Na4 {[%clk 0:00:50.2]} 36... Kc6 {[%clk 0:00:23.6]} 37. Nc5 {[%clk 0:00:46.8]}
37... a5 {[%clk 0:00:24.6]} 38. Nd3 {[%clk 0:00:40.7]} 38... Kd6 {[%clk
0:00:20.3]} 39. Nc5 {[%clk 0:00:38.1]} 39... Kc6 {[%clk 0:00:20.8]} 40. a3
{[%clk 0:00:36.3]} 40... b6 {[%clk 0:00:21.9]} 41. Nd3 {[%clk 0:00:36.6]} 41...
Kb5 {[%clk 0:00:21.1]} 42. Ke3 {[%clk 0:00:37.8]} 42... Kc4 {[%clk 0:00:21.6]}
43. Nc1 {[%clk 0:00:35.5]} 43... Bf5 {[%clk 0:00:22.6]} 44. Kf4 {[%clk
0:00:23.4]} 44... Bg4 {[%clk 0:00:23.8]} 45. Ke3 {[%clk 0:00:24.6]} 45... Be6
{[%clk 0:00:16.3]} 46. Ne2 {[%clk 0:00:10.2]} 46... Kb3 {[%clk 0:00:17.5]} 47.
Nc3 {[%clk 0:00:07.8]} 47... Kxb2 {[%clk 0:00:16]} 48. Na4+ {[%clk 0:00:09.1]}
48... Kxa3 {[%clk 0:00:17.7]} 49. Nxb6 {[%clk 0:00:11]} 49... Kb4 {[%clk
0:00:17.8]} 50. Kf4 {[%clk 0:00:06.7]} 50... a4 {[%clk 0:00:18.9]} 0-1

[Event "*** Titled Tuesday 3|2 Blitz"]
[Site "Chess.com"]
[Date "2016.09.06"]
[Round "1"]
[White "Alexander_Moskalenko"]
[Black "MbMaster"]
[Result "1/2-1/2"]
[WhiteElo "2649"]
[BlackElo "2298"]
[TimeControl "180+2"]
[EndTime "17:10:07 PDT"]
[Termination "Game drawn by repetition"]

1. b3 {[%clk 0:02:59]} 1... e5 {[%clk 0:02:58.7]} 2. Bb2 {[%clk 0:03:00.9]} 2...
Nc6 {[%clk 0:02:59.9]} 3. c4 {[%clk 0:03:02.5]} 3... Nf6 {[%clk 0:02:55.6]} 4.
e3 {[%clk 0:03:03.9]} 4... d5 {[%clk 0:02:56.6]} 5. cxd5 {[%clk 0:03:05.8]} 5...
Nxd5 {[%clk 0:02:57.3]} 6. a3 {[%clk 0:03:07.5]} 6... Be7 {[%clk 0:02:56.6]} 7.
d3 {[%clk 0:03:08.4]} 7... O-O {[%clk 0:02:57.3]} 8. Nf3 {[%clk 0:03:10]} 8...
Re8 {[%clk 0:02:51.2]} 9. Be2 {[%clk 0:03:09.7]} 9... Bf8 {[%clk 0:02:44.8]} 10.
O-O {[%clk 0:03:10.5]} 10... a6 {[%clk 0:02:44.7]} 11. Nbd2 {[%clk 0:03:12]}
11... Bg4 {[%clk 0:02:39.3]} 12. b4 {[%clk 0:03:12.8]} 12... Qd7 {[%clk
0:02:35.5]} 13. Rc1 {[%clk 0:03:14.3]} 13... Rad8 {[%clk 0:02:35.9]} 14. Ne4
{[%clk 0:03:15.3]} 14... Qc8 {[%clk 0:02:19.7]} 15. h3 {[%clk 0:03:16.2]} 15...
Bh5 {[%clk 0:02:19.8]} 16. Qc2 {[%clk 0:02:57.9]} 16... Bg6 {[%clk 0:02:17.2]}
17. Nh4 {[%clk 0:02:56.3]} 17... Bxe4 {[%clk 0:02:05.2]} 18. dxe4 {[%clk
0:02:57.4]} 18... Nb6 {[%clk 0:02:06.4]} 19. Bg4 {[%clk 0:02:51]} 19... Qb8
{[%clk 0:02:02.6]} 20. Nf5 {[%clk 0:02:50.6]} 20... g6 {[%clk 0:02:03.5]} 21.
Ng3 {[%clk 0:02:51.3]} 21... Rd6 {[%clk 0:02:04.4]} 22. Rfd1 {[%clk 0:02:50.8]}
22... Red8 {[%clk 0:02:05.4]} 23. Rxd6 {[%clk 0:02:52.4]} 23... Rxd6 {[%clk
0:02:07.3]} 24. Ne2 {[%clk 0:02:53.6]} 24... Qd8 {[%clk 0:02:08.4]} 25. Bc3
{[%clk 0:02:53.3]} 25... Nc4 {[%clk 0:02:07.3]} 26. Qa2 {[%clk 0:02:49.5]} 26...
Nd2 {[%clk 0:02:02.2]} 27. Bxd2 {[%clk 0:02:38]} 27... Rxd2 {[%clk 0:02:02.5]}
28. Qc4 {[%clk 0:02:39.2]} 28... Rd1+ {[%clk 0:02:01]} 29. Kh2 {[%clk
0:02:37.8]} 29... h5 {[%clk 0:01:56.6]} 30. Bf3 {[%clk 0:02:36.2]} 30... Rxc1
{[%clk 0:01:56.8]} 31. Nxc1 {[%clk 0:02:36.2]} 31... a5 {[%clk 0:01:54.1]} 32.
Nd3 {[%clk 0:02:36.5]} 32... axb4 {[%clk 0:01:53.1]} 33. axb4 {[%clk 0:02:38.4]}
33... Qd6 {[%clk 0:01:53.6]} 34. b5 {[%clk 0:02:38]} 34... Na5 {[%clk
0:01:52.6]} 35. Qc3 {[%clk 0:02:38.2]} 35... b6 {[%clk 0:01:48.6]} 36. g3 {[%clk
0:02:34.9]} 36... Nb7 {[%clk 0:01:48.7]} 37. Kg2 {[%clk 0:02:27.2]} 37... Nc5
{[%clk 0:01:49]} 38. Nb2 {[%clk 0:02:28.8]} 38... Qd7 {[%clk 0:01:46]} 39. Be2
{[%clk 0:02:03.4]} 39... Nxe4 {[%clk 0:01:37.6]} 40. Qxe5 {[%clk 0:02:04.1]}
40... Nd6 {[%clk 0:01:39.2]} 41. Qd5 {[%clk 0:02:03.1]} 41... Qf5 {[%clk
0:01:36.1]} 42. Qxf5 {[%clk 0:02:03.3]} 42... Nxf5 {[%clk 0:01:38]} 43. Bd3
{[%clk 0:02:03.9]} 43... Nd6 {[%clk 0:01:37.3]} 44. Nd1 {[%clk 0:02:04.5]} 44...
Bg7 {[%clk 0:01:38.2]} 45. f4 {[%clk 0:02:05.8]} 45... Kf8 {[%clk 0:01:39.6]}
46. e4 {[%clk 0:02:06.3]} 46... Ke7 {[%clk 0:01:41.1]} 47. e5 {[%clk 0:02:06.8]}
47... Nb7 {[%clk 0:01:42.4]} 48. Kf3 {[%clk 0:02:07.9]} 48... Nc5 {[%clk
0:01:43.9]} 49. Bc4 {[%clk 0:02:09.2]} 49... Ke8 {[%clk 0:01:44.5]} 50. Ne3
{[%clk 0:02:09.7]} 50... Bf8 {[%clk 0:01:43.4]} 51. Nd5 {[%clk 0:02:08.9]} 51...
Ne6 {[%clk 0:01:44]} 52. Nf6+ {[%clk 0:02:09.3]} 52... Ke7 {[%clk 0:01:44.1]}
53. Ke4 {[%clk 0:02:11]} 53... Nc5+ {[%clk 0:01:43.8]} 54. Kd5 {[%clk
0:02:12.1]} 54... Ne6 {[%clk 0:01:44.2]} 55. Kc6 {[%clk 0:02:11.4]} 55... Kd8
{[%clk 0:01:27.4]} 56. Bxe6 {[%clk 0:02:12.2]} 56... fxe6 {[%clk 0:01:29.3]} 57.
Ne4 {[%clk 0:02:14.1]} 57... Be7 {[%clk 0:01:25.4]} 58. g4 {[%clk 0:02:09.8]}
58... hxg4 {[%clk 0:01:24.4]} 59. hxg4 {[%clk 0:02:11.7]} 59... Kc8 {[%clk
0:01:24.7]} 60. Nf6 {[%clk 0:02:09.2]} 60... Kd8 {[%clk 0:01:24.2]} 61. Ne4
{[%clk 0:01:51.6]} 61... Bh4 {[%clk 0:01:20.6]} 62. Kb7 {[%clk 0:00:35.8]} 62...
Kd7 {[%clk 0:01:20.1]} 63. Nc3 {[%clk 0:00:29.4]} 63... Bg3 {[%clk 0:01:16.3]}
64. Ne2 {[%clk 0:00:30.4]} 64... Bh2 {[%clk 0:01:17.1]} 65. g5 {[%clk
0:00:19.1]} 65... Kd8 {[%clk 0:01:17.8]} 66. Kb8 {[%clk 0:00:18.3]} 66... Kd7
{[%clk 0:01:16.3]} 67. Kb7 {[%clk 0:00:19.8]} 67... Kd8 {[%clk 0:01:17.3]} 68.
Nd4 {[%clk 0:00:20.4]} 68... Kd7 {[%clk 0:00:59.3]} 69. Ne2 {[%clk 0:00:21.7]}
1/2-1/2

[Event "*** Titled Tuesday 3|2 Blitz"]
[Site "Chess.com"]
[Date "2016.09.06"]
[Round "1"]
[White "akinov-akinseye"]
[Black "Rumpel-VK"]
[Result "0-1"]
[WhiteElo "2038"]
[BlackElo "2444"]
[TimeControl "180+2"]
[EndTime "17:10:07 PDT"]
[Termination "Rumpel-VK won by checkmate"]

1. e4 {[%clk 0:03:01.9]} 1... d6 {[%clk 0:02:50.6]} 2. d4 {[%clk 0:03:02.9]}
2... Nf6 {[%clk 0:02:50.3]} 3. Nc3 {[%clk 0:03:04.3]} 3... Nbd7 {[%clk 0:02:50]}
4. Nf3 {[%clk 0:03:05.5]} 4... e5 {[%clk 0:02:49.9]} 5. dxe5 {[%clk 0:03:06.5]}
5... dxe5 {[%clk 0:02:47.5]} 6. Bc4 {[%clk 0:03:07.8]} 6... Be7 {[%clk
0:02:45.1]} 7. O-O {[%clk 0:03:06.7]} 7... O-O {[%clk 0:02:45.3]} 8. h3 {[%clk
0:03:07]} 8... c6 {[%clk 0:02:45.1]} 9. Be3 {[%clk 0:03:07.9]} 9... b5 {[%clk
0:02:23.8]} 10. Bd3 {[%clk 0:03:03.4]} 10... b4 {[%clk 0:01:51.1]} 11. Ne2
{[%clk 0:03:01]} 11... Qc7 {[%clk 0:01:35.1]} 12. Ng3 {[%clk 0:02:59.6]} 12...
Nc5 {[%clk 0:01:35.4]} 13. Qe2 {[%clk 0:02:39.4]} 13... Nxd3 {[%clk 0:01:27.9]}
14. cxd3 {[%clk 0:02:24.8]} 14... Ba6 {[%clk 0:01:14.4]} 15. Nf5 {[%clk
0:02:16.8]} 15... Nxe4 {[%clk 0:01:04.7]} 16. Bh6 {[%clk 0:01:51.9]} 16... gxh6
{[%clk 0:00:44.4]} 17. Qxe4 {[%clk 0:01:52.2]} 17... Bf6 {[%clk 0:00:44.2]} 18.
Nxh6+ {[%clk 0:01:42.6]} 18... Kh8 {[%clk 0:00:44.3]} 19. Rac1 {[%clk
0:01:33.7]} 19... c5 {[%clk 0:00:43.6]} 20. Qf5 {[%clk 0:01:15]} 20... Bg7
{[%clk 0:00:38.4]} 21. Ng5 {[%clk 0:01:13.8]} 21... Bxd3 {[%clk 0:00:29.9]} 22.
Qxd3 {[%clk 0:01:09.4]} 22... e4 {[%clk 0:00:21.2]} 23. Qxe4 {[%clk 0:01:06.4]}
23... f5 {[%clk 0:00:22.2]} 24. Nxf5 {[%clk 0:01:06.2]} 24... Rae8 {[%clk
0:00:23]} 25. Qh4 {[%clk 0:01:05.2]} 25... Bxb2 {[%clk 0:00:20.6]} 26. Rxc5
{[%clk 0:01:02.2]} 26... Qd7 {[%clk 0:00:18.2]} 27. Rd5 {[%clk 0:00:54.1]} 27...
Qc7 {[%clk 0:00:16.4]} 28. Qh6 {[%clk 0:00:40.3]} 28... Rf6 {[%clk 0:00:14.4]}
29. Qh5 {[%clk 0:00:36.3]} 29... Rg8 {[%clk 0:00:13.5]} 30. Rb1 {[%clk
0:00:34.8]} 30... Bc3 {[%clk 0:00:13.3]} 31. Rc1 {[%clk 0:00:32.5]} 31... Rfg6
{[%clk 0:00:12.2]} 32. Rc5 {[%clk 0:00:27.8]} 32... Qd7 {[%clk 0:00:11.6]} 33.
Rd5 {[%clk 0:00:26.2]} 33... Rxg5 {[%clk 0:00:07]} 34. Qxg5 {[%clk 0:00:21.6]}
34... Qxd5 {[%clk 0:00:07.9]} 35. Qxg8+ {[%clk 0:00:05]} 35... Qxg8 {[%clk
0:00:07.5]} 36. a3 {[%clk 0:00:05.9]} 36... Qb3 {[%clk 0:00:07.2]} 37. g4 {[%clk
0:00:05.2]} 37... bxa3 {[%clk 0:00:07.3]} 38. Ne3 {[%clk 0:00:04.4]} 38... a2
{[%clk 0:00:07.3]} 39. Kg2 {[%clk 0:00:04.8]} 39... a1=Q {[%clk 0:00:07.7]} 40.
Rxa1 {[%clk 0:00:05.6]} 40... Bxa1 {[%clk 0:00:08.6]} 41. Nf5 {[%clk 0:00:07.5]}
41... a5 {[%clk 0:00:07.7]} 42. h4 {[%clk 0:00:08.6]} 42... a4 {[%clk
0:00:08.9]} 43. h5 {[%clk 0:00:10]} 43... a3 {[%clk 0:00:10.1]} 44. h6 {[%clk
0:00:11.4]} 44... a2 {[%clk 0:00:11.3]} 45. Ne3 {[%clk 0:00:10.2]} 45... Qxe3
{[%clk 0:00:11]} 46. fxe3 {[%clk 0:00:11.2]} 46... Bb2 {[%clk 0:00:12.4]} 47.
Kf3 {[%clk 0:00:12.8]} 47... a1=Q {[%clk 0:00:13.7]} 48. g5 {[%clk 0:00:14.7]}
48... Qa6 {[%clk 0:00:14.7]} 49. Kf4 {[%clk 0:00:15.5]} 49... Qg6 {[%clk
0:00:16]} 50. e4 {[%clk 0:00:16.4]} 50... Bc1+ {[%clk 0:00:17.2]} 51. Ke5 {[%clk
0:00:16.6]} 51... Bxg5 {[%clk 0:00:18.6]} 52. Kd4 {[%clk 0:00:18.5]} 52... Bxh6
{[%clk 0:00:19.4]} 53. e5 {[%clk 0:00:20.4]} 53... Bg7 {[%clk 0:00:20.6]} 54.
Kd5 {[%clk 0:00:21.6]} 54... Bxe5 {[%clk 0:00:22.1]} 55. Kxe5 {[%clk 0:00:22.6]}
55... h5 {[%clk 0:00:23.6]} 56. Kf4 {[%clk 0:00:23.8]} 56... h4 {[%clk
0:00:24.6]} 57. Ke3 {[%clk 0:00:25.6]} 57... Qg4 {[%clk 0:00:25]} 58. Kf2 {[%clk
0:00:27.5]} 58... Qg3+ {[%clk 0:00:26]} 59. Ke2 {[%clk 0:00:28.5]} 59... h3
{[%clk 0:00:27.2]} 60. Kf1 {[%clk 0:00:29.4]} 60... Qg2+ {[%clk 0:00:28.2]} 61.
Ke1 {[%clk 0:00:30.3]} 61... h2 {[%clk 0:00:29.3]} 62. Kd1 {[%clk 0:00:31.1]}
62... h1=Q# {[%clk 0:00:30.4]} 0-1

[Event "*** Titled Tuesday 3|2 Blitz"]
[Site "Chess.com"]
[Date "2016.09.06"]
[Round "1"]
[White "Iball95"]
[Black "papapizza_old"]
[Result "0-1"]
[WhiteElo "2490"]
[BlackElo "2251"]
[TimeControl "180+2"]
[EndTime "17:10:54 PDT"]
[Termination "papapizza_old won by checkmate"]

1. e4 {[%clk 0:03:00.6]} 1... c5 {[%clk 0:02:59.3]} 2. Nf3 {[%clk 0:03:02]} 2...
d6 {[%clk 0:02:58.5]} 3. Bb5+ {[%clk 0:03:03.4]} 3... Nd7 {[%clk 0:02:57.8]} 4.
d4 {[%clk 0:03:03.8]} 4... Nf6 {[%clk 0:02:57.6]} 5. e5 {[%clk 0:03:04.7]} 5...
cxd4 {[%clk 0:02:56.9]} 6. Qxd4 {[%clk 0:03:03.1]} 6... dxe5 {[%clk 0:02:47.2]}
7. Nxe5 {[%clk 0:03:05]} 7... a6 {[%clk 0:02:47.5]} 8. Nxd7 {[%clk 0:02:48.7]}
8... Bxd7 {[%clk 0:02:47.5]} 9. Bxd7+ {[%clk 0:02:32.8]} 9... Qxd7 {[%clk
0:02:48.2]} 10. Qxd7+ {[%clk 0:02:34.2]} 10... Kxd7 {[%clk 0:02:45.8]} 11. c4
{[%clk 0:02:27.2]} 11... Rc8 {[%clk 0:02:32.6]} 12. b3 {[%clk 0:02:25]} 12... b5
{[%clk 0:02:30.7]} 13. Nd2 {[%clk 0:02:17.5]} 13... e6 {[%clk 0:02:14.5]} 14.
Bb2 {[%clk 0:02:16.4]} 14... Bb4 {[%clk 0:02:09.1]} 15. O-O-O {[%clk 0:01:32.1]}
15... Ke7 {[%clk 0:02:08.9]} 16. Kb1 {[%clk 0:00:52.5]} 16... Rhd8 {[%clk
0:01:48.7]} 17. Nf3 {[%clk 0:00:52.2]} 17... bxc4 {[%clk 0:01:44.2]} 18. Rxd8
{[%clk 0:00:44.6]} 18... Kxd8 {[%clk 0:01:42.5]} 19. bxc4 {[%clk 0:00:41.7]}
19... Rxc4 {[%clk 0:01:37.6]} 20. Ne5 {[%clk 0:00:42.7]} 20... Rc7 {[%clk
0:01:38.3]} 21. a3 {[%clk 0:00:33.9]} 21... Ba5 {[%clk 0:01:19.6]} 22. Rd1+
{[%clk 0:00:35]} 22... Nd5 {[%clk 0:01:15.8]} 23. Rd3 {[%clk 0:00:31.9]} 23...
Ke7 {[%clk 0:01:09.9]} 24. Rg3 {[%clk 0:00:23.1]} 24... g6 {[%clk 0:01:10.2]}
25. Rh3 {[%clk 0:00:22.9]} 25... h5 {[%clk 0:00:54.1]} 26. Rf3 {[%clk
0:00:24.1]} 26... Ke8 {[%clk 0:00:54.2]} 27. Bd4 {[%clk 0:00:22.9]} 27... Bc3
{[%clk 0:00:46.1]} 28. Bxc3 {[%clk 0:00:22.8]} 28... Nxc3+ {[%clk 0:00:46.5]}
29. Kb2 {[%clk 0:00:23.7]} 29... Nd5 {[%clk 0:00:41.7]} 30. g3 {[%clk
0:00:25.1]} 30... g5 {[%clk 0:00:36.2]} 31. h4 {[%clk 0:00:25.5]} 31... f6
{[%clk 0:00:36.1]} 32. Nd3 {[%clk 0:00:23.5]} 32... g4 {[%clk 0:00:34.2]} 33.
Rf4 {[%clk 0:00:20.5]} 33... Nxf4 {[%clk 0:00:35]} 34. Nxf4 {[%clk 0:00:22.4]}
34... Rc5 {[%clk 0:00:29.5]} 35. Nxe6 {[%clk 0:00:21.9]} 35... Rb5+ {[%clk
0:00:30.5]} 36. Kc3 {[%clk 0:00:22.5]} 36... Ke7 {[%clk 0:00:30.5]} 37. Nd4
{[%clk 0:00:22.4]} 37... Rc5+ {[%clk 0:00:27.8]} 38. Kb4 {[%clk 0:00:22.3]}
38... Rd5 {[%clk 0:00:28.7]} 39. Kc4 {[%clk 0:00:23.5]} 39... Kd6 {[%clk
0:00:27.4]} 40. a4 {[%clk 0:00:23.3]} 40... Rc5+ {[%clk 0:00:25.4]} 41. Kb4
{[%clk 0:00:23.1]} 41... a5+ {[%clk 0:00:26.3]} 42. Kb3 {[%clk 0:00:23.6]} 42...
Kd5 {[%clk 0:00:26.8]} 43. Nf5 {[%clk 0:00:22.9]} 43... Ke4 {[%clk 0:00:25]} 44.
Nd6+ {[%clk 0:00:13.6]} 44... Kf3 {[%clk 0:00:23.2]} 45. Nb7 {[%clk 0:00:12.1]}
45... Re5 {[%clk 0:00:23.2]} 46. Kc4 {[%clk 0:00:12.6]} 46... Kxf2 {[%clk
0:00:23.4]} 47. Nc5 {[%clk 0:00:13.6]} 47... Kxg3 {[%clk 0:00:21.3]} 48. Nd3
{[%clk 0:00:14.7]} 48... Rf5 {[%clk 0:00:17.5]} 49. Kd4 {[%clk 0:00:15.8]} 49...
Kxh4 {[%clk 0:00:17.6]} 50. Ke4 {[%clk 0:00:16.8]} 50... Re5+ {[%clk 0:00:17.4]}
51. Kf4 {[%clk 0:00:17.8]} 51... Rd5 {[%clk 0:00:17.4]} 52. Nf2 {[%clk
0:00:18.6]} 52... Rd4+ {[%clk 0:00:18.3]} 53. Ke3 {[%clk 0:00:19.6]} 53... Rxa4
{[%clk 0:00:18.9]} 54. Nd1 {[%clk 0:00:20.5]} 54... Rb4 {[%clk 0:00:19.7]} 55.
Nc3 {[%clk 0:00:20.3]} 55... Rb8 {[%clk 0:00:19.9]} 56. Nd5 {[%clk 0:00:22.2]}
56... Kg5 {[%clk 0:00:20.5]} 57. Nc3 {[%clk 0:00:22.2]} 57... Ra8 {[%clk
0:00:21.4]} 58. Ne4+ {[%clk 0:00:23.5]} 58... Kg6 {[%clk 0:00:21.9]} 59. Kf4
{[%clk 0:00:21.5]} 59... a4 {[%clk 0:00:23.1]} 60. Nc3 {[%clk 0:00:22.6]} 60...
a3 {[%clk 0:00:24.3]} 61. Na2 {[%clk 0:00:24.5]} 61... Ra4+ {[%clk 0:00:23.6]}
62. Kg3 {[%clk 0:00:25.2]} 62... Kg5 {[%clk 0:00:23.8]} 63. Nc3 {[%clk
0:00:26.9]} 63... Rc4 {[%clk 0:00:24]} 64. Ne2 {[%clk 0:00:27.9]} 64... a2
{[%clk 0:00:24.4]} 65. Ng1 {[%clk 0:00:21.6]} 65... Rc3+ {[%clk 0:00:22.9]} 66.
Kg2 {[%clk 0:00:21.5]} 66... a1=Q {[%clk 0:00:21.9]} 67. Ne2 {[%clk 0:00:23.4]}
67... Rc2 {[%clk 0:00:22]} 68. Kg3 {[%clk 0:00:24.5]} 68... Qa3+ {[%clk
0:00:21.9]} 69. Kf2 {[%clk 0:00:25.7]} 69... Rxe2+ {[%clk 0:00:22.3]} 70. Kxe2
{[%clk 0:00:27.6]} 70... Qf3+ {[%clk 0:00:22.9]} 71. Ke1 {[%clk 0:00:21.6]}
71... g3 {[%clk 0:00:24]} 72. Kd2 {[%clk 0:00:23.1]} 72... g2 {[%clk 0:00:25.1]}
73. Kc2 {[%clk 0:00:24.4]} 73... g1=Q {[%clk 0:00:25.1]} 74. Kd2 {[%clk
0:00:26.3]} 74... Qgg2+ {[%clk 0:00:26.1]} 75. Ke1 {[%clk 0:00:27.5]} 75...
Qff1# {[%clk 0:00:27.7]} 0-1